{"text_format":"3","workbook":"xlsx","n_sheets":1,"sheets":["Relatório de despesas"],"not_rendered":{"defined_names":4},"read":"whole","date_system":"1900"}

{"sheet":"Relatório de despesas","index":0,"n_rows":14,"n_cols":14,"rows_kept":14,"merged":[[0,1,0,5],[2,3,2,5],[2,6,2,7],[2,8,2,10],[4,3,4,5],[4,6,4,7],[4,8,4,10]]}
[null,"Relatório de despesas de viagem"]
[]
[null,"Nome","Sara Melo","Autorizado por",null,null,"Henrique Cunha",null,"Reembolso por quilômetro",null,null,{"v":0.32,"d":"R$ 0.32"}]
[]
[null,"Departamento","Vendas","Data de Envio",null,null,{"$f":"TODAY()","v":"2018-01-19"},null,"Reembolso total",null,null,{"$f":"Despesas[[#Totals],[Total]]","v":{"v":1798.775958549223,"d":"R$ 1,798.78"}}]
[]
[null,"Período",{"$f":"IF(MIN(B10:B13)=MAX(B10:B13),TEXT(MIN(B10:B13),\"dd/mm/aa\"),\"De \"&TEXT(MIN(B10:B13),\"dd/mm/aa\")&\" até \"&TEXT(MAX(B10:B13),\"dd/mm/aa\"))","v":"De 20/12/17 até 25/12/17"}]
[]
[null,"Data","Descrição da despesa","Tarifa aérea","Hospedagem","Transporte Terrestre \n(combustível, aluguel de carro, táxi)","Refeições e gorjetas","Conferências e seminários","Quilômetros","Reembolso por quilometragem","Diversas","Taxa de câmbio da moeda","Moeda de despesa","Total"]
[null,{"$f":"TODAY()-30","v":"2017-12-20"},"Viagem para a agência do cliente",{"v":350,"d":"350.00"},{"v":150,"d":"150.00"},{"v":45,"d":"45.00"},{"v":12,"d":"12.00"},{"v":50,"d":"50.00"},{"v":35,"d":"35.00"},{"$f":"IF('Relatório de despesas'!I10<>\"\",'Relatório de despesas'!I10*TaxaDeQuilometragem,\"\")","v":{"v":11.200000000000001,"d":"11.20"}},null,{"v":0.386,"d":"0.39"},"CAD",{"$f":"IFERROR(IF(OR('Relatório de despesas'!$L10=\"\",'Relatório de despesas'!$L10=1),SUM('Relatório de despesas'!$J10:$K10,'Relatório de despesas'!$D10:$H10)*1,SUM('Relatório de despesas'!$J10:$K10,'Relatório de despesas'!$D10:$H10)/'Relatório de despesas'!$L10),\"\")","v":{"v":1601.5544041450778,"d":"R$ 1,601.55"}}]
[null,{"$f":"TODAY()-30","v":"2017-12-20"},"Almoço com o cliente",{"$nulls":3},{"v":24.3,"d":"24.30"},null,{"v":12,"d":"12.00"},{"$f":"IF('Relatório de despesas'!I11<>\"\",'Relatório de despesas'!I11*TaxaDeQuilometragem,\"\")","v":3.84},null,{"v":0.386,"d":"0.39"},"CAD",{"$f":"IFERROR(IF(OR('Relatório de despesas'!$L11=\"\",'Relatório de despesas'!$L11=1),SUM('Relatório de despesas'!$J11:$K11,'Relatório de despesas'!$D11:$H11)*1,SUM('Relatório de despesas'!$J11:$K11,'Relatório de despesas'!$D11:$H11)/'Relatório de despesas'!$L11),\"\")","v":{"v":72.90155440414507,"d":"R$ 72.90"}}]
[null,"2017-12-20","Seminário à tarde",{"$nulls":4},{"v":100,"d":"100.00"},{"v":6,"d":"6.00"},{"$f":"IF('Relatório de despesas'!I12<>\"\",'Relatório de despesas'!I12*TaxaDeQuilometragem,\"\")","v":1.92},null,{"v":1,"d":"1.00"},"BRL",{"$f":"IFERROR(IF(OR('Relatório de despesas'!$L12=\"\",'Relatório de despesas'!$L12=1),SUM('Relatório de despesas'!$J12:$K12,'Relatório de despesas'!$D12:$H12)*1,SUM('Relatório de despesas'!$J12:$K12,'Relatório de despesas'!$D12:$H12)/'Relatório de despesas'!$L12),\"\")","v":{"v":101.92,"d":"R$ 101.92"}}]
[null,{"$f":"TODAY()-25","v":"2017-12-25"},"Viagem para o aeroporto",{"$nulls":5},{"v":70,"d":"70.00"},{"$f":"IF('Relatório de despesas'!I13<>\"\",'Relatório de despesas'!I13*TaxaDeQuilometragem,\"\")","v":{"v":22.400000000000002,"d":"22.40"}},null,{"v":1,"d":"1.00"},"BRL",{"$f":"IFERROR(IF(OR('Relatório de despesas'!$L13=\"\",'Relatório de despesas'!$L13=1),SUM('Relatório de despesas'!$J13:$K13,'Relatório de despesas'!$D13:$H13)*1,SUM('Relatório de despesas'!$J13:$K13,'Relatório de despesas'!$D13:$H13)/'Relatório de despesas'!$L13),\"\")","v":{"v":22.400000000000002,"d":"R$ 22.40"}}]
[null,"Total",null,{"$f":"SUBTOTAL(109,Despesas[Tarifa aérea])","v":{"v":350,"d":"350.00"}},{"$f":"SUBTOTAL(109,Despesas[Hospedagem])","v":{"v":150,"d":"150.00"}},{"$f":"SUBTOTAL(109,Despesas[Transporte Terrestre \n(combustível, aluguel de carro, táxi)])","v":{"v":45,"d":"45.00"}},{"$f":"SUBTOTAL(109,Despesas[Refeições e gorjetas])","v":{"v":36.3,"d":"36.30"}},{"$f":"SUBTOTAL(109,Despesas[Conferências e seminários])","v":{"v":150,"d":"150.00"}},{"$f":"SUBTOTAL(109,Despesas[Quilômetros])","v":{"v":123,"d":"123.00"}},{"$f":"SUBTOTAL(109,Despesas[Reembolso por quilometragem])","v":39.36},{"$f":"SUBTOTAL(109,Despesas[Diversas])","v":{"v":0,"d":"0.00"}},null,null,{"$f":"SUBTOTAL(109,Despesas[Total])","v":{"v":1798.775958549223,"d":"R$ 1,798.78"}}]